fUSD/lending_fUSD_20250219
["ID","MTS","AMOUNT","RATE_DAILY","PERIOD"]
[353606179,1739957039969,-545.22,0.00014356,2]
[353606180,1739957040003,-807.24,0.00014356,2]
[353606181,1739957040038,-514.11,0.00014356,2]
[353606182,1739957040072,-819.39,0.00014356,2]
[353606183,1739957040104,-468.21440851,0.00014356,2]
[353606184,1739957040137,-572.21,0.00014356,2]
[353606185,1739957040173,-500.0,0.00014356,2]
[353606186,1739957040210,-649.94,0.00014356,2]
[353606187,1739957040245,-500.0,0.00014356,2]
[353606188,1739957040280,-500.0,0.00014356,2]
[353606189,1739957040316,-500.0,0.00014356,2]
[353606190,1739957040350,-500.0,0.00014356,2]
[353606191,1739957040383,-1211.58,0.00014356,2]
[353606192,1739957040416,-500.0,0.00014356,2]
[353606193,1739957040449,-1135.36,0.00014356,2]
[353606194,1739957040482,-500.0,0.00014356,2]
[353606195,1739957040515,-500.0,0.00014356,2]
[353606196,1739957040547,-722.48,0.00014356,2]
[353606197,1739957040578,-500.0,0.00014356,2]
[353606198,1739957040611,-1272.14,0.00014356,2]
[353606199,1739957040643,-500.0,0.00014356,2]
[353606200,1739957040676,-500.0,0.00014356,2]
[353606201,1739957040707,-500.0,0.00014356,2]
[353606202,1739957040743,-712.89,0.00014356,2]
[353606203,1739957040775,-500.0,0.00014356,2]
[353606204,1739957040807,-500.0,0.00014356,2]
[353606205,1739957040838,-500.0,0.00014356,2]
[353606206,1739957040878,-500.0,0.00014356,2]
[353606207,1739957040916,-862.66,0.00014356,2]
[353606208,1739957040957,-1233.72,0.00014356,2]
[353606209,1739957040993,-740.17,0.00014356,2]
[353606210,1739957041029,-758.66,0.00014356,2]
[353606211,1739957041067,-500.0,0.00014356,2]
[353606212,1739957041101,-601.16,0.00014356,2]
[353606213,1739957041135,-689.44,0.00014356,2]
[353606214,1739957041168,-593.48,0.00014356,2]
[353606215,1739957041204,-500.0,0.00014356,2]
[353606216,1739957041239,-774.93,0.00014356,2]
[353606217,1739957041273,-500.0,0.00014356,2]
[353606218,1739957041313,-1397.033156,0.00014356,2]
[353606219,1739957041355,-500.0,0.00014356,2]
[353606220,1739957041396,-1325.26,0.00014356,2]
[353606221,1739957041433,-500.0,0.00014356,2]
[353606222,1739957041731,-750.16,0.00014356,2]
[353606223,1739957041773,-500.0,0.00014356,2]
[353606224,1739957041810,-500.0,0.00014356,2]
[353606225,1739957041849,-1394.43,0.00014356,2]
[353606226,1739957041889,-500.0,0.00014356,2]
[353606227,1739957041927,-156.190118,0.00014356,2]
[353606228,1739957041966,-500.0,0.00014356,2]
[353606229,1739957042001,-500.0,0.00014356,2]
[353606230,1739957042038,-638.51,0.00014356,2]
[353606231,1739957042073,-500.0,0.00014356,2]
[353606232,1739957042106,-236.92198617,0.00014356,2]
[353606233,1739957042139,-500.0,0.00014356,2]
[353606234,1739957042171,-500.0,0.00014356,2]
[353606235,1739957042204,-500.0,0.00014356,2]
[353606236,1739957042235,-916.97,0.00014356,2]
[353606237,1739957042267,-500.0,0.00014356,2]
[353606238,1739957042300,-571.77,0.00014356,2]
[353606239,1739957042335,-500.0,0.00014356,2]
[353606240,1739957042367,-535.59,0.00014356,2]
[353606241,1739957042399,-543.64,0.00014356,2]
[353606242,1739957042432,-646.22,0.00014356,2]
[353606243,1739957042465,-1263.66,0.00014356,2]
[353606244,1739957042498,-865.23,0.00014356,2]
[353606245,1739957042529,-592.33,0.00014356,2]
[353606246,1739957042561,-1825.346312,0.00014356,2]
[353606247,1739957042591,-646.68,0.00014356,2]
[353606248,1739957042621,-597.97,0.00014356,2]
[353606249,1739957042652,-694.2,0.00014356,2]
[353606250,1739957042684,-500.0,0.00014356,2]
[353606251,1739957042716,-500.0,0.00014356,2]
[353606252,1739957042748,-500.0,0.00014356,2]
[353606253,1739957042780,-1174.15,0.00014356,2]
[353606254,1739957042812,-500.0,0.00014356,2]
[353606255,1739957042845,-878.0,0.00014356,2]
[353606256,1739957042881,-500.0,0.00014356,2]
[353606257,1739957042918,-825.52,0.00014356,2]
[353606258,1739957042955,-500.0,0.00014356,2]
[353606259,1739957042989,-500.0,0.00014356,2]
[353606260,1739957043025,-500.0,0.00014356,2]
[353606261,1739957043063,-500.0,0.00014356,2]
[353606262,1739957043098,-516.38,0.00014356,2]
[353606263,1739957043134,-500.0,0.00014356,2]
[353606264,1739957043172,-500.0,0.00014356,2]
[353606265,1739957043212,-1264.71,0.00014356,2]
[353606266,1739957043249,-906.18,0.00014356,2]
[353606267,1739957043285,-500.0,0.00014356,2]
[353606268,1739957043321,-596.51039548,0.00014356,2]
[353606269,1739957043357,-500.0,0.00014356,2]
[353606270,1739957043392,-565.96,0.00014356,2]
[353606271,1739957043426,-500.0,0.00014356,2]
[353606272,1739957043464,-988.21,0.00014356,2]
[353606273,1739957043498,-1121.54,0.00014356,2]
[353606274,1739957043530,-500.0,0.00014356,2]
[353606275,1739957043577,-500.52,0.00014356,2]
[353606276,1739957043637,-500.0,0.00014356,2]
[353606277,1739957043692,-500.0,0.00014356,2]
[353606278,1739957043752,-500.0,0.00014356,2]
[353606279,1739957043808,-1126.66,0.00014356,2]
[353606280,1739957043865,-628.69,0.00014356,2]
[353606281,1739957043917,-500.0,0.00014356,2]
[353606282,1739957043970,-500.0,0.00014356,2]
[353606283,1739957044024,-500.0,0.00014356,2]
[353606284,1739957044078,-500.0,0.00014356,2]
[353606285,1739957044129,-777.31,0.00014356,2]
[353606287,1739957044180,-883.27,0.00014356,2]
[353606288,1739957044228,-500.0,0.00014356,2]
[353606289,1739957044278,-601.15,0.00014356,2]
[353606290,1739957044334,-500.0,0.00014356,2]
[353606291,1739957044385,-500.0,0.00014356,2]
[353606292,1739957044436,-653.11,0.00014356,2]
[353606293,1739957044486,-500.0,0.00014356,2]
[353606294,1739957044535,-777.33,0.00014356,2]
[353606295,1739957044587,-500.0,0.00014356,2]
[353606296,1739957044637,-523.08,0.00014356,2]
[353606297,1739957044687,-1044.61,0.00014356,2]
[353606298,1739957044736,-712.57,0.00014356,2]
[353606299,1739957044784,-540.46,0.00014356,2]
[353606300,1739957044832,-777.07,0.00014356,2]
[353606301,1739957044886,-687.05,0.00014356,2]
[353606302,1739957044939,-500.0,0.00014356,2]
[353606303,1739957044989,-879.81,0.00014356,2]
[353606304,1739957045038,-500.0,0.00014356,2]
[353606305,1739957045086,-525.83,0.00014356,2]
[353606306,1739957045132,-625.39,0.00014356,2]
[353606307,1739957045166,-888.05,0.00014356,2]
[353606308,1739957045201,-787.18,0.00014356,2]
[353606309,1739957045235,-500.0,0.00014356,2]
[353606310,1739957045269,-781.66,0.00014356,2]
[353606311,1739957045303,-532.61,0.00014356,2]
[353606312,1739957045335,-596.76,0.00014356,2]
[353606313,1739957045368,-536.22,0.00014356,2]
[353606314,1739957045400,-500.0,0.00014356,2]
[353606315,1739957045432,-500.0,0.00014356,2]
[353606316,1739957045465,-608.40409748,0.00014356,2]
[353606317,1739957045499,-914.58,0.00014356,2]
[353606318,1739957045533,-500.0,0.00014356,2]
[353606319,1739957045566,-500.0,0.00014356,2]
[353606320,1739957045601,-657.0,0.00014356,2]
[353606321,1739957045633,-500.0,0.00014356,2]
[353606322,1739957045665,-727.68,0.00014356,2]
[353606323,1739957045700,-1554.06,0.00014356,2]
[353606324,1739957045734,-594.44,0.00014356,2]
[353606325,1739957045767,-500.0,0.00014356,2]
[353606326,1739957045802,-500.0,0.00014356,2]
[353606327,1739957046479,-1286.14,0.00014356,2]
[353606328,1739957046551,-539.19,0.00014356,2]
[353606329,1739957046587,-731.14,0.00014356,2]
[353606330,1739957046621,-500.0,0.00014356,2]
[353606331,1739957046655,-523.74,0.00014356,2]
[353606332,1739957046690,-1494.76,0.00014356,2]
[353606333,1739957046724,-500.0,0.00014356,2]
[353606334,1739957046758,-500.0,0.00014356,2]
[353606335,1739957046793,-656.29,0.00014356,2]
[353606336,1739957046828,-500.0,0.00014356,2]
[353606337,1739957046865,-500.0,0.00014356,2]
[353606338,1739957046900,-1380.28,0.00014356,2]
[353606339,1739957046935,-500.0,0.00014356,2]
[353606340,1739957046971,-500.0,0.00014356,2]
[353606341,1739957047006,-500.0,0.00014356,2]
[353606342,1739957047040,-500.0,0.00014356,2]
[353606343,1739957047077,-1469.68,0.00014356,2]
[353606344,1739957047111,-500.0,0.00014356,2]
[353606345,1739957047144,-500.0,0.00014356,2]
[353606346,1739957047178,-287.72379163,0.00014356,2]
[353606347,1739957047212,-1629.48,0.00014356,2]
[353606348,1739957047247,-500.0,0.00014356,2]
[353606349,1739957047284,-506.69,0.00014356,2]
[353606350,1739957047320,-500.0,0.00014356,2]
[353606351,1739957047354,-1643.27,0.00014356,2]
[353606352,1739957047388,-500.0,0.00014356,2]
[353606353,1739957047422,-500.07,0.00014356,2]
[353606354,1739957047456,-1374.04,0.00014356,2]
[353606355,1739957047490,-500.0,0.00014356,2]
[353606356,1739957047525,-500.0,0.00014356,2]
[353606357,1739957047558,-514.47743458,0.00014356,2]
[353606358,1739957047590,-408.23818839,0.00014356,2]
[353606359,1739957047623,-500.0,0.00014356,2]
[353606360,1739957047660,-2880.46,0.00014356,2]
[353606361,1739957047695,-500.0,0.00014356,2]
[353606362,1739957047729,-500.0,0.00014356,2]
[353606363,1739957047761,-500.0,0.00014356,2]
[353606364,1739957047794,-500.0,0.00014356,2]
[353606365,1739957047827,-708.89,0.00014356,2]
[353606366,1739957047862,-1303.36,0.00014356,2]
[353606367,1739957047898,-293.13209497,0.00014356,2]
[353606368,1739957047935,-500.0,0.00014356,2]
[353606369,1739957047971,-500.0,0.00014356,2]
[353606370,1739957048005,-626.2,0.00014356,2]
[353606371,1739957048036,-607.94128863,0.00014356,2]
[353606372,1739957048068,-500.0,0.00014356,2]
[353606373,1739957048101,-500.0,0.00014356,2]
[353606374,1739957048133,-691.7,0.00014356,2]
[353606375,1739957048166,-500.0,0.00014356,2]
[353606376,1739957048198,-598.12,0.00014356,2]
[353606377,1739957048233,-500.0,0.00014356,2]
[353606378,1739957048267,-500.0,0.00014356,2]
[353606379,1739957048300,-500.0,0.00014356,2]
[353606380,1739957048336,-1590.92,0.00014356,2]
[353606381,1739957048369,-500.0,0.00014356,2]
[353606382,1739957048402,-629.55,0.00014356,2]
[353606383,1739957048436,-956.27,0.00014356,2]
[353606384,1739957048469,-500.0,0.00014356,2]
[353606385,1739957048503,-500.89,0.00014356,2]
[353606386,1739957048536,-500.0,0.00014356,2]
[353606387,1739957048569,-848.21,0.00014356,2]
[353606388,1739957048602,-500.0,0.00014356,2]
[353606389,1739957048657,-998.89,0.00014356,2]
[353606390,1739957048710,-500.0,0.00014356,2]
[353606391,1739957048760,-782.0,0.00014356,2]
[353606392,1739957048797,-500.0,0.00014356,2]
[353606393,1739957048833,-500.0,0.00014356,2]
[353606394,1739957048869,-840.54,0.00014356,2]
[353606395,1739957048906,-500.0,0.00014356,2]
[353606396,1739957048944,-632.82,0.00014356,2]
[353606397,1739957048983,-1192.42,0.00014356,2]
[353606398,1739957049021,-500.0,0.00014356,2]
[353606399,1739957049061,-500.0,0.00014356,2]
[353606400,1739957049101,-657.73,0.00014356,2]
[353606401,1739957049146,-500.0,0.00014356,2]
[353606402,1739957049205,-1447.73,0.00014356,2]
[353606403,1739957049267,-156.70219814,0.00014356,2]
[353606404,1739957049316,-825.98,0.00014356,2]
[353606405,1739957049357,-500.0,0.00014356,2]
[353606406,1739957049396,-500.0,0.00014356,2]
[353606407,1739957049438,-719.81,0.00014356,2]
[353606408,1739957049477,-262.08285876,0.00014356,2]
[353606409,1739957049515,-500.0,0.00014356,2]
[353606410,1739957049554,-1285.19,0.00014356,2]
[353606411,1739957049592,-500.0,0.00014356,2]
[353606412,1739957049633,-500.0,0.00014356,2]
[353606413,1739957049677,-500.0,0.00014356,2]
[353606414,1739957049719,-2760.81,0.00014356,2]
[353606415,1739957049758,-500.0,0.00014356,2]
[353606416,1739957049802,-1429.12,0.00014356,2]
[353606417,1739957049843,-535.98,0.00014356,2]
[353606418,1739957049893,-1108.97,0.00014356,2]
[353606419,1739957049937,-560.79,0.00014356,2]
[353606420,1739957049976,-1725.34,0.00014356,2]
[353606421,1739957050014,-500.0,0.00014356,2]
[353606422,1739957050051,-583.25,0.00014356,2]
[353606423,1739957050088,-783.42,0.00014356,2]
[353606424,1739957050123,-500.0,0.00014356,2]
[353606425,1739957050160,-778.14,0.00014356,2]
[353606426,1739957050195,-500.0,0.00014356,2]
[353606427,1739957050230,-1078.1,0.00014356,2]
[353606428,1739957050266,-500.0,0.00014356,2]
[353606429,1739957050304,-2405.75,0.00014356,2]
[353606430,1739957050342,-5296.1,0.00014356,2]
[353606431,1739957050378,-2043.27,0.00014356,2]
[353606432,1739957050415,-1534.33,0.00014356,2]
[353606433,1739957050452,-500.0,0.00014356,2]
[353606434,1739957050488,-647.07,0.00014356,2]
[353606435,1739957050524,-500.0,0.00014356,2]
[353606436,1739957050561,-1051.18,0.00014356,2]
[353606437,1739957050597,-738.28,0.00014356,2]
[353606438,1739957050632,-500.0,0.00014356,2]
[353606439,1739957050666,-1093.24,0.00014356,2]
[353606440,1739957050702,-500.0,0.00014356,2]
[353606441,1739957050738,-1295.32,0.00014356,2]
[353606442,1739957050776,-2278.72,0.00014356,2]
[353606443,1739957050810,-500.0,0.00014356,2]
[353606444,1739957050845,-1455.08,0.00014356,2]
[353606445,1739957050883,-500.0,0.00014356,2]
[353606446,1739957050915,-500.0,0.00014356,2]
[353606447,1739957050948,-572.16,0.00014356,2]
[353606448,1739957051147,-929.06,0.00014356,2]
[353606449,1739957051181,-967.27,0.00014356,2]
[353606450,1739957051216,-1119.05,0.00014356,2]
[353606451,1739957051252,-500.0,0.00014356,2]
[353606452,1739957051287,-500.0,0.00014356,2]
[353606453,1739957051321,-500.0,0.00014356,2]
[353606454,1739957051355,-770.13,0.00014356,2]
[353606455,1739957051388,-500.0,0.00014356,2]
[353606456,1739957051423,-4255.25,0.00014356,2]
[353606457,1739957051461,-500.0,0.00014356,2]
[353606458,1739957051496,-1120.64,0.00014356,2]
[353606459,1739957051530,-500.0,0.00014356,2]
[353606460,1739957051564,-500.0,0.00014356,2]
[353606461,1739957051596,-1021.92,0.00014356,2]
[353606462,1739957051630,-680.04,0.00014356,2]
[353606463,1739957051664,-500.0,0.00014356,2]
[353606464,1739957051696,-500.0,0.00014356,2]
[353606465,1739957051728,-500.0,0.00014356,2]
[353606466,1739957051760,-1015.43,0.00014356,2]
[353606467,1739957051792,-541.44,0.00014356,2]
[353606468,1739957051823,-500.0,0.00014356,2]
[353606469,1739957051858,-500.0,0.00014356,2]
[353606470,1739957051891,-500.0,0.00014356,2]
[353606471,1739957051925,-909.24,0.00014356,2]
[353606472,1739957051963,-500.0,0.00014356,2]
[353606473,1739957051998,-500.0,0.00014356,2]
[353606474,1739957052032,-152.297437,0.00014356,2]
[353606475,1739957052065,-500.0,0.00014356,2]
[353606476,1739957052098,-500.0,0.00014356,2]
[353606477,1739957052131,-500.0,0.00014356,2]
[353606478,1739957052164,-1252.15,0.00014356,2]
[353606479,1739957052195,-526.48730934,0.00014356,2]
[353606480,1739957052225,-500.0,0.00014356,2]
[353606481,1739957052256,-724.82,0.00014356,2]
[353606482,1739957052288,-604.92,0.00014356,2]
[353606483,1739957052321,-855.46,0.00014356,2]
[353606484,1739957052353,-155.81498,0.00014356,2]
[353606485,1739957052384,-500.0,0.00014356,2]
[353606486,1739957052413,-736.01,0.00014356,2]
[353606487,1739957052443,-1283.84,0.00014356,2]
[353606488,1739957052475,-500.0,0.00014356,2]
[353606489,1739957052507,-500.0,0.00014356,2]
[353606490,1739957052536,-745.89,0.00014356,2]
[353606491,1739957052568,-1926.5,0.00014356,2]
[353606492,1739957052599,-1055.67,0.00014356,2]
[353606493,1739957052630,-627.81,0.00014356,2]
[353606494,1739957052660,-500.0,0.00014356,2]
[353606495,1739957052692,-776.57,0.00014356,2]
[353606496,1739957052722,-500.0,0.00014356,2]
[353606497,1739957052753,-733.08,0.00014356,2]
[353606498,1739957052784,-547.75,0.00014356,2]
[353606499,1739957052814,-500.0,0.00014356,2]
[353606500,1739957052844,-529.59,0.00014356,2]
[353606501,1739957052880,-4362.54,0.00014356,2]
[353606502,1739957052909,-500.0,0.00014356,2]
[353606503,1739957052940,-500.0,0.00014356,2]
[353606504,1739957052969,-500.0,0.00014356,2]
[353606505,1739957053001,-500.0,0.00014356,2]
[353606506,1739957053030,-691.67,0.00014356,2]
[353606507,1739957053060,-580.48,0.00014356,2]
[353606508,1739957053091,-1333.98,0.00014356,2]
[353606509,1739957053122,-2090.9,0.00014356,2]
[353606510,1739957053152,-823.1,0.00014356,2]
[353606511,1739957053181,-733.25,0.00014356,2]
[353606512,1739957053212,-552.5,0.00014356,2]
[353606513,1739957053242,-1331.05,0.00014356,2]
[353606514,1739957053271,-500.0,0.00014356,2]
[353606515,1739957053301,-1921.55,0.00014409,2]
[353606516,1739957053332,-1370.1117883,0.00014428,2]
[353606517,1739957053362,-951.0704583,0.00014428,2]
[353606518,1739957053391,-303.6119941,0.00014428,2]
[353606519,1739957053422,-194.5583732,0.00014428,2]
[353606520,1739957053453,-500.0,0.00014438,2]
[353606521,1739957053483,-543.01,0.00014438,2]
[353606522,1739957053513,-634.82,0.00014438,2]
[353606523,1739957053545,-500.0,0.00014438,2]
[353606524,1739957053576,-541.04,0.00014438,2]
[353606525,1739957053610,-500.0,0.00014438,2]
[353606526,1739957053641,-725.34,0.00014438,2]
[353606527,1739957053671,-778.48,0.00014438,2]
[353606528,1739957053702,-500.0,0.00014438,2]
[353606529,1739957053732,-500.0,0.00014438,2]
[353606530,1739957053762,-633.81,0.00014438,2]
[353606531,1739957053793,-562.62,0.00014438,2]
[353606532,1739957053822,-844.44,0.00014438,2]
[353606533,1739957053853,-500.0,0.00014438,2]
[353606534,1739957053891,-500.0,0.00014438,2]
[353606535,1739957053926,-500.0,0.00014438,2]
[353606536,1739957053963,-722.42,0.00014438,2]
[353606537,1739957053997,-510.18,0.00014438,2]
[353606538,1739957054030,-575.54117563,0.00014438,2]
[353606539,1739957054063,-650.55,0.00014438,2]
[353606540,1739957054095,-500.0,0.00014438,2]
[353606541,1739957054127,-500.0,0.00014438,2]
[353606542,1739957054159,-500.0,0.00014438,2]
[353606543,1739957054193,-1055.45,0.00014438,2]
[353606544,1739957054226,-500.0,0.00014438,2]
[353606545,1739957054259,-500.0,0.00014438,2]
[353606546,1739957054294,-205.47,0.00014438,2]
[353606547,1739957054326,-691.51,0.00014438,2]
[353606548,1739957054359,-909.51,0.00014438,2]
[353606549,1739957054391,-500.0,0.00014438,2]
[353606550,1739957054423,-667.83,0.00014438,2]
[353606551,1739957054460,-500.0,0.00014438,2]
[353606552,1739957054495,-531.54,0.00014438,2]
[353606553,1739957054528,-647.18,0.00014438,2]
[353606554,1739957054561,-500.0,0.00014438,2]
[353606555,1739957054593,-500.0,0.00014438,2]
[353606556,1739957054624,-930.4,0.00014438,2]
[353606557,1739957054653,-500.0,0.00014438,2]
[353606558,1739957054684,-625.34,0.00014438,2]
[353606559,1739957054717,-500.0,0.00014438,2]
[353606560,1739957054747,-515.28,0.00014438,2]
[353606561,1739957054778,-551.52,0.00014438,2]
[353606562,1739957054811,-500.0,0.00014438,2]
[353606563,1739957054846,-500.0,0.00014438,2]
[353606564,1739957054882,-500.0,0.00014438,2]
[353606565,1739957054916,-770.16,0.00014438,2]
[353606566,1739957054952,-500.0,0.00014438,2]
[353606567,1739957054991,-500.0,0.00014438,2]
[353606568,1739957055033,-500.0,0.00014438,2]
[353606569,1739957055072,-500.0,0.00014438,2]
[353606570,1739957055108,-500.0,0.00014438,2]
[353606571,1739957055144,-512.49,0.00014438,2]
[353606572,1739957055179,-533.08,0.00014438,2]
[353606573,1739957055220,-628.45,0.00014438,2]
[353606574,1739957055254,-743.05,0.00014438,2]
[353606575,1739957055288,-500.0,0.00014438,2]
[353606576,1739957055324,-1540.98,0.00014438,2]
[353606577,1739957055358,-545.22,0.00014438,2]
[353606578,1739957055391,-807.24,0.00014438,2]
[353606579,1739957055423,-514.11,0.00014438,2]
[353606580,1739957055458,-819.39,0.00014438,2]
[353606581,1739957055489,-572.21,0.00014438,2]
[353606582,1739957055521,-500.0,0.00014438,2]
[353606583,1739957055553,-649.94,0.00014438,2]
[353606584,1739957055584,-500.0,0.00014438,2]
[353606585,1739957055616,-500.0,0.00014438,2]
[353606586,1739957055647,-500.0,0.00014438,2]
[353606587,1739957055678,-500.0,0.00014438,2]
[353606588,1739957055713,-1211.58,0.00014438,2]
[353606589,1739957055747,-522.43742761,0.00014438,2]
[353606590,1739957055783,-500.0,0.00014438,2]
[353606591,1739957055817,-1135.36,0.00014438,2]
[353606592,1739957055852,-500.0,0.00014438,2]
[353606593,1739957055891,-722.48,0.00014438,2]
[353606594,1739957055927,-500.0,0.00014438,2]
[353606595,1739957055965,-1272.14,0.00014438,2]
[353606596,1739957056000,-500.0,0.00014438,2]
[353606597,1739957056179,-500.0,0.00014438,2]
[353606598,1739957056259,-503.17332649,0.00014438,2]
[353606599,1739957056297,-712.89,0.00014438,2]
[353606600,1739957056335,-500.0,0.00014438,2]
[353606601,1739957056371,-578.52038007,0.00014438,2]
[353606602,1739957056404,-444.01282678,0.00014438,2]
[353606603,1739957056439,-500.0,0.00014438,2]
[353606604,1739957056473,-862.66,0.00014438,2]
[353606605,1739957056508,-1233.72,0.00014438,2]
[353606606,1739957056542,-740.17,0.00014438,2]
[353606607,1739957056575,-758.66,0.00014438,2]
[353606608,1739957056608,-500.0,0.00014438,2]
[353606609,1739957056641,-601.16,0.00014438,2]
[353606610,1739957056672,-689.44,0.00014438,2]
[353606611,1739957056704,-593.48,0.00014438,2]
[353606612,1739957056736,-500.0,0.00014438,2]
[353606613,1739957056769,-774.93,0.00014438,2]
[353606614,1739957056802,-500.0,0.00014438,2]
[353606615,1739957056836,-1397.033156,0.00014438,2]
[353606616,1739957056871,-500.0,0.00014438,2]
[353606617,1739957056906,-1325.26,0.00014438,2]
[353606618,1739957056944,-500.0,0.00014438,2]
[353606619,1739957056980,-750.16,0.00014438,2]
[353606620,1739957057017,-500.0,0.00014438,2]
[353606621,1739957057053,-500.0,0.00014438,2]
[353606622,1739957057090,-162.079268,0.00014438,2]
[353606623,1739957057129,-1394.43,0.00014438,2]
[353606624,1739957057168,-500.0,0.00014438,2]
[353606625,1739957057208,-500.0,0.00014438,2]
[353606626,1739957057243,-500.0,0.00014438,2]
[353606627,1739957057285,-638.51,0.00014438,2]
[353606628,1739957057320,-500.0,0.00014438,2]
[353606629,1739957057354,-500.0,0.00014438,2]
[353606630,1739957057389,-500.0,0.00014438,2]
[353606631,1739957057427,-500.0,0.00014438,2]
[353606632,1739957057467,-916.97,0.00014438,2]
[353606633,1739957057501,-500.0,0.00014438,2]
[353606634,1739957057536,-571.77,0.00014438,2]
[353606635,1739957057569,-500.0,0.00014438,2]
[353606636,1739957057603,-535.59,0.00014438,2]
[353606637,1739957057636,-543.64,0.00014438,2]
[353606638,1739957057671,-646.22,0.00014438,2]
[353606639,1739957057707,-1263.66,0.00014438,2]
[353606640,1739957057743,-865.23,0.00014438,2]
[353606641,1739957057778,-592.33,0.00014438,2]
[353606642,1739957057816,-1825.346312,0.00014438,2]
[353606643,1739957057857,-646.68,0.00014438,2]
[353606644,1739957057895,-597.97,0.00014438,2]
[353606645,1739957057933,-694.2,0.00014438,2]
[353606646,1739957057971,-500.0,0.00014438,2]
[353606647,1739957058007,-500.0,0.00014438,2]
[353606648,1739957058044,-556.41220388,0.00014438,2]
[353606649,1739957058082,-1174.15,0.00014438,2]
[353606650,1739957058118,-500.0,0.00014438,2]
[353606651,1739957058154,-878.0,0.00014438,2]
[353606652,1739957058190,-500.0,0.00014438,2]
[353606653,1739957058226,-825.52,0.00014438,2]
[353606654,1739957058261,-500.0,0.00014438,2]
[353606655,1739957058294,-500.0,0.00014438,2]
[353606656,1739957058328,-500.0,0.00014438,2]
[353606657,1739957058361,-500.0,0.00014438,2]
[353606658,1739957058393,-516.38,0.00014438,2]
[353606659,1739957058425,-500.0,0.00014438,2]
[353606660,1739957058460,-500.0,0.00014438,2]
[353606661,1739957058494,-1264.71,0.00014438,2]
[353606662,1739957058525,-906.18,0.00014438,2]
[353606663,1739957058558,-500.0,0.00014438,2]
[353606664,1739957058589,-245.97620724,0.00014438,2]
[353606665,1739957058621,-565.96,0.00014438,2]
[353606666,1739957058654,-500.0,0.00014438,2]
[353606667,1739957058687,-988.21,0.00014438,2]
[353606668,1739957058719,-1121.54,0.00014438,2]
[353606669,1739957058752,-500.0,0.00014438,2]
[353606670,1739957058785,-500.52,0.00014438,2]
[353606671,1739957058817,-500.0,0.00014438,2]
[353606672,1739957058850,-500.0,0.00014438,2]
[353606673,1739957058888,-500.0,0.00014438,2]
[353606674,1739957058925,-1126.66,0.00014438,2]
[353606675,1739957058961,-628.69,0.00014438,2]
[353606676,1739957058998,-500.0,0.00014438,2]
[353606677,1739957059034,-500.0,0.00014438,2]
[353606678,1739957059068,-500.0,0.00014438,2]
[353606679,1739957059102,-500.0,0.00014438,2]